bitfinex-derivatives/quotes_ETHF0:USTF0_20260118
["timestamp","ask_amount","ask_price","bid_price","bid_amount"]
[1768708119006,0.1453374,3319.1,3317.9,0.9697871]
[1768708120003,0.0034049,3319.1,3318.1,0.9697871]
[1768708122716,0.0034049,3319.1,3318.0,0.15074]
[1768708128605,0.1419325,3319.6,3318.3,0.9697871]
[1768708128811,1.06230712,3319.5,3318.3,0.9697871]
[1768708129010,1.06230712,3319.4,3318.3,0.9697871]
[1768708129216,0.1419325,3319.6,3318.3,0.9697871]
[1768708129519,1.06220843,3319.5,3318.3,0.9697871]
[1768708129713,1.06220843,3319.4,3318.3,0.9697871]
[1768708129908,0.14507305,3319.6,3318.3,0.9697871]
[1768708130104,1.06220843,3319.5,3318.3,0.9697871]
[1768708130308,1.06220843,3319.4,3318.2,0.15073]
[1768708130619,0.14507305,3319.6,3318.2,0.15073]
[1768708130824,1.06214074,3319.5,3318.2,0.15073]
[1768708131013,1.06214074,3319.4,3318.2,0.15073]
[1768708131214,1.11486015,3319.6,3318.2,0.15073]
[1768708131420,1.06209553,3319.5,3318.2,0.15073]
[1768708131719,1.11486015,3319.6,3318.3,0.97873]
[1768708134212,0.14507305,3319.6,3318.3,0.97873]
[1768708134520,1.11486015,3319.6,3318.3,0.97873]
[1768708135418,1.10010172,3319.4,3318.3,0.97873]
[1768708135722,0.13031462,3319.3,3318.3,0.97873]
[1768708135927,0.9697871,3319.2,3318.3,0.97873]
[1768708136110,1.10010172,3319.3,3318.3,0.97873]
[1768708136432,1.10010172,3319.3,3318.3,0.15073]
[1768708136621,0.13031462,3319.3,3318.3,0.15073]
[1768708136923,1.10010172,3319.3,3318.3,0.15073]
[1768708137511,0.13031462,3319.3,3318.3,0.15073]
[1768708137718,0.9697871,3318.8,3317.7,0.15075]
[1768708138923,1.10010172,3318.8,3317.7,0.15075]
[1768708139126,0.9697871,3318.7,3317.7,0.15075]
[1768708139319,1.10010172,3318.7,3317.7,0.15075]
[1768708139827,0.13031462,3318.7,3317.7,0.15075]
[1768708143022,0.13031462,3318.6,3317.7,0.15075]
[1768708143229,0.13031462,3318.4,3317.7,0.15075]
[1768708144223,0.13031462,3318.4,3317.3,0.828]
[1768708144423,1.10010172,3318.3,3317.3,0.828]
[1768708146128,0.13031462,3318.2,3317.3,0.828]
[1768708148135,0.13031462,3318.2,3317.2,0.828]
[1768708150131,0.13031462,3318.2,3317.2,0.97878]
[1768708152639,0.13031462,3318.2,3317.3,0.15077]
[1768708155739,0.9697871,3318.5,3317.3,0.15077]
[1768708156238,1.10010172,3318.5,3317.3,0.15077]
[1768708157240,0.13031462,3318.4,3317.3,0.15077]
[1768708159738,0.9697871,3318.3,3317.3,0.15077]
[1768708159943,1.10010172,3318.1,3317.3,0.15077]
[1768708160741,0.13031462,3318.1,3317.3,0.15077]
[1768708179253,0.14016103,3318.9,3317.3,0.15077]
[1768708179458,0.14016103,3318.7,3317.3,0.15077]
[1768708179648,1.06958452,3318.6,3317.3,0.15077]
[1768708179847,1.20974555,3318.5,3317.3,0.15077]
[1768708180049,0.14016103,3318.5,3317.3,0.15077]
[1768708187159,1.07143128,3318.4,3317.3,0.15077]
[1768708187350,0.14016103,3318.5,3317.3,0.15077]
[1768708187550,1.07143127,3318.4,3317.3,0.15077]
[1768708187750,0.14016103,3318.5,3317.3,0.15077]
[1768708187958,1.07143128,3318.4,3317.3,0.15077]
[1768708188162,0.14016103,3318.5,3317.3,0.15077]
[1768708188460,1.0715484,3318.4,3317.3,0.15077]
[1768708188658,0.14016103,3318.5,3317.3,0.15077]
[1768708188859,1.0715484,3318.4,3317.3,0.15077]
[1768708189456,0.14016103,3318.5,3317.3,0.15077]
[1768708189760,1.07183698,3318.4,3317.3,0.15077]
[1768708190057,0.14016103,3318.5,3317.3,0.15077]
[1768708190255,1.07183686,3318.4,3317.3,0.15077]
[1768708190456,0.14016103,3318.5,3317.3,0.15077]
[1768708190661,1.07183959,3318.4,3317.3,0.15077]
[1768708190860,0.14016103,3318.5,3317.3,0.15077]
[1768708191161,1.07183958,3318.4,3317.3,0.15077]
[1768708191361,0.14016103,3318.5,3317.3,0.15077]
[1768708191661,1.07183902,3318.4,3317.3,0.15077]
[1768708191862,0.14016103,3318.5,3317.3,0.15077]
[1768708192062,1.07183903,3318.4,3317.3,0.15077]
[1768708192265,0.14016103,3318.5,3317.3,0.15077]
[1768708192562,1.07183887,3318.4,3317.3,0.15077]
[1768708192756,0.14016103,3318.5,3317.3,0.15077]
[1768708192957,1.07183885,3318.4,3317.3,0.15077]
[1768708193160,0.14016103,3318.5,3317.3,0.15077]
[1768708193359,1.07183848,3318.4,3317.3,0.15077]
[1768708193559,0.14016103,3318.5,3317.3,0.15077]
[1768708193866,1.07183854,3318.4,3317.3,0.15077]
[1768708194159,0.14016103,3318.5,3317.3,0.15077]
[1768708194360,1.07183796,3318.4,3317.4,0.15077]
[1768708194561,0.14016103,3318.5,3317.4,0.15077]
[1768708194863,1.0718364,3318.4,3317.4,0.15077]
[1768708195055,0.14016103,3318.5,3317.4,0.15077]
[1768708195262,1.07183638,3318.4,3317.4,0.15077]
[1768708195461,0.14016103,3318.5,3317.4,0.15077]
[1768708195761,1.07183371,3318.4,3317.4,0.15077]
[1768708195955,0.14016103,3318.5,3317.4,0.15077]
[1768708196156,1.07183369,3318.4,3317.4,0.15077]
[1768708196362,0.14016103,3318.5,3317.4,0.15077]
[1768708196565,1.07183164,3318.4,3317.4,0.15077]
[1768708196766,0.14016103,3318.5,3317.5,0.15076]
[1768708196978,0.14016103,3318.5,3317.7,0.15075]
[1768708197262,0.13435458,3318.9,3317.1,0.11162771]
[1768708197464,1.07143193,3318.8,3317.1,0.11162771]
[1768708197666,1.07143193,3318.7,3317.1,0.11162771]
[1768708197858,0.13435458,3318.9,3317.1,0.11162771]
[1768708198160,1.07143159,3318.8,3317.1,0.11162771]
[1768708198358,1.07143159,3318.7,3317.1,0.11162771]
[1768708198560,0.13435458,3318.9,3317.8,0.15075]
[1768708198860,1.07128345,3318.8,3317.8,0.15075]
[1768708199061,1.07128345,3318.7,3317.8,0.15075]
[1768708199261,0.13435458,3318.9,3317.8,0.15075]
[1768708199468,1.20553211,3318.8,3317.8,0.15075]
[1768708199667,1.07117753,3318.7,3317.8,0.15075]
[1768708199870,0.13435458,3318.8,3317.8,0.15075]
[1768708200171,1.07117753,3318.7,3317.8,0.15075]
[1768708200370,0.13435458,3318.8,3317.8,0.15075]
[1768708200669,1.07116696,3318.7,3317.8,0.15075]
[1768708200869,0.13435458,3318.8,3317.8,0.15075]
[1768708201868,0.63713641,3319.2,3317.8,0.15075]
[1768708202068,1.07089961,3319.1,3317.8,0.15075]
[1768708202261,1.07089961,3319.0,3317.8,0.15075]
[1768708202465,1.07089961,3318.9,3317.8,0.15075]
[1768708202663,0.63713641,3319.2,3317.8,0.15075]
[1768708202869,1.07071166,3319.1,3317.8,0.15075]
[1768708203068,1.07071166,3319.0,3317.8,0.15075]
[1768708203262,1.07071166,3318.9,3317.8,0.15075]
[1768708203463,0.63713641,3319.2,3317.8,0.15075]
[1768708203762,1.20489751,3319.1,3317.8,0.15075]
[1768708203971,1.07054293,3319.0,3317.8,0.15075]
[1768708204166,1.07054293,3318.9,3317.8,0.15075]
[1768708204367,0.13435458,3319.1,3317.8,0.15075]
[1768708204568,1.07041338,3319.0,3317.8,0.15075]
[1768708204763,1.07041338,3318.9,3317.8,0.15075]
[1768708204968,0.13435458,3319.1,3317.8,0.15075]
[1768708205164,1.07041337,3319.0,3317.8,0.15075]
[1768708205364,1.07041337,3318.9,3317.8,0.15075]
[1768708205572,0.13435458,3319.1,3317.8,0.15075]
[1768708205775,1.07030788,3319.0,3317.8,0.15075]
[1768708205971,1.07030788,3318.9,3317.8,0.15075]
[1768708206271,0.13435458,3319.1,3317.8,0.15075]
[1768708206475,1.07022217,3319.0,3317.8,0.15075]
[1768708206668,1.07022217,3318.9,3317.8,0.15075]
[1768708206868,0.13435458,3319.1,3317.8,0.15075]
[1768708207071,1.07022212,3319.0,3317.8,0.15075]
[1768708207372,1.07022212,3318.9,3317.8,0.15075]
[1768708207560,0.13435458,3319.1,3317.8,0.15075]
[1768708207762,1.07015174,3319.0,3317.8,0.15075]
[1768708207961,1.07015174,3318.9,3317.8,0.15075]
[1768708208170,0.13435458,3319.1,3317.8,0.15075]
[1768708208370,1.07009508,3319.0,3317.8,0.15075]
[1768708208670,0.13435458,3319.1,3317.8,0.15075]
[1768708208871,1.20444966,3319.0,3317.8,0.15075]
[1768708209069,0.13435458,3319.0,3317.8,0.15075]
[1768708209664,0.13435458,3319.0,3317.9,0.15074]
[1768708209869,0.13435458,3319.0,3317.5,0.828]
[1768708210675,0.13435458,3319.0,3318.0,0.15074]
[1768708211274,0.13749513,3319.6,3317.9,0.96999782]
[1768708211487,1.06970883,3319.5,3318.4,0.15072]
[1768708211769,0.13749513,3319.6,3318.5,0.15072]
[1768708212494,0.13749513,3319.6,3318.6,0.15071]
[1768708233987,0.13749513,3319.6,3318.6,1.11987751]
[1768708239488,0.00314055,3319.6,3318.6,1.11987751]
[1768708239988,0.00314055,3319.6,3318.7,0.15071]
[1768708240187,0.00314055,3319.6,3318.7,0.1546205]
[1768708240990,0.00314055,3319.6,3318.7,1.12378801]
[1768708241510,0.00314055,3319.6,3318.9,1.11986751]
[1768708245794,0.00314055,3319.6,3319.0,0.96916751]
[1768708246598,0.96916751,3320.4,3319.2,0.96916751]
[1768708246599,0.13565522,3320.4,3319.2,0.96916751]
[1768708246818,1.06662284,3320.3,3319.2,0.96916751]
[1768708246999,1.06662284,3320.2,3319.2,0.96916751]
[1768708247194,0.13565522,3320.4,3319.2,0.96916751]
[1768708247401,1.0663201,3320.3,3319.2,0.96916751]
[1768708247695,1.0663201,3320.2,3319.2,1.11984751]
[1768708247897,0.00265358,3320.3,3319.2,1.11984751]
[1768708248096,1.0663201,3320.2,3319.2,1.11984751]
[1768708248300,0.00265358,3320.3,3319.2,1.11984751]
[1768708252319,0.00265358,3320.3,3319.2,0.15068]
[1768708260320,0.97182109,3320.3,3319.2,0.15068]
[1768708262827,0.00265358,3320.3,3319.2,0.15068]
[1768708263830,1.09958832,3320.2,3319.2,0.15068]
[1768708264016,1.09958832,3319.7,3319.2,0.15068]
[1768708265931,0.13042081,3319.7,3319.2,0.15068]
[1768708267231,0.13042081,3319.7,3318.8,0.828]
[1768708268530,0.13042081,3319.7,3318.7,0.8319105]
[1768708269429,1.09958832,3319.6,3318.7,0.8319105]
[1768708271737,1.09958832,3319.6,3317.8,0.11059622]
[1768708271738,0.96916751,3319.0,3317.9,0.828]
[1768708271936,1.09958832,3319.0,3317.9,0.828]
[1768708272234,1.09958832,3319.0,3317.8,0.15075]
[1768708272641,1.09958832,3319.0,3317.9,0.15075]
[1768708273136,0.96916751,3318.8,3317.9,0.15075]
[1768708274630,1.09958832,3318.8,3317.9,0.15075]
[1768708275838,0.13042081,3318.7,3317.9,0.15075]
[1768708276034,0.13042081,3318.7,3317.0,0.11185574]
[1768708276235,0.96916751,3318.4,3317.3,0.15077]
[1768708276436,0.13042081,3318.3,3317.3,0.15077]
[1768708277127,0.13042081,3318.3,3317.3,0.15359644]
[1768708296958,0.13109674,3318.2,3316.6,0.1508]
[1768708298167,0.13109674,3318.2,3316.6,0.15419619]
[1768708301263,0.13109674,3318.0,3316.6,0.15419619]
[1768708304263,0.96984503,3318.3,3316.6,0.15419619]
[1768708304264,1.19633822,3317.9,3316.6,0.15419619]
[1768708304453,0.13425911,3317.9,3316.6,0.15419619]
[1768708323976,0.13425911,3317.9,3316.7,0.1508]
[1768708324175,0.00316237,3317.9,3316.7,0.1508]
[1768708325276,1.06723349,3317.8,3316.7,0.1508]
[1768708325480,0.00316237,3317.9,3316.7,0.1508]
[1768708325676,1.06723368,3317.8,3316.7,0.1508]
[1768708325876,0.00316237,3317.9,3316.7,0.1508]
[1768708326376,1.06771776,3317.8,3316.7,0.1508]
[1768708326578,0.00316237,3317.9,3316.7,0.1508]
[1768708326877,1.06771778,3317.8,3316.7,0.1508]
[1768708327078,0.00316237,3317.9,3316.7,0.1508]
[1768708327378,1.0677178,3317.8,3316.7,0.1508]
[1768708327578,0.00316237,3317.9,3316.7,0.1508]
[1768708327875,1.06776533,3317.8,3316.7,0.1508]
[1768708328076,0.14604369,3317.9,3316.7,0.1508]
[1768708328267,1.06776568,3317.8,3316.7,0.1508]
[1768708328467,0.14604369,3317.9,3316.7,0.1508]
[1768708328664,1.06782223,3317.8,3316.7,0.1508]
[1768708328879,0.14604369,3317.9,3316.7,0.1508]
[1768708329072,1.06782318,3317.8,3316.7,0.1508]
[1768708329375,0.14604369,3317.9,3316.7,0.1508]
[1768708329578,1.06789216,3317.8,3316.7,0.1508]
[1768708329768,0.14604369,3317.9,3316.7,0.1508]
[1768708329965,1.06789173,3317.8,3316.7,0.1508]
[1768708330167,0.14604369,3317.9,3316.7,0.1508]
[1768708330376,1.0679794,3317.8,3316.7,0.1508]
[1768708330577,0.14604369,3317.9,3316.7,0.1508]
[1768708330773,1.0679794,3317.8,3316.7,0.1508]
[1768708331073,0.14604369,3317.9,3316.7,0.1508]
[1768708331276,1.06797939,3317.8,3316.7,0.1508]
[1768708331471,0.14604369,3317.9,3316.7,0.1508]
[1768708331671,1.06809432,3317.8,3316.7,0.1508]
[1768708331871,0.14604369,3317.9,3316.7,0.1508]
[1768708332080,1.06809417,3317.8,3316.7,0.1508]
[1768708332280,0.14604369,3317.9,3316.7,0.1508]
[1768708332482,1.06831466,3317.8,3316.7,0.1508]
[1768708332679,0.14604369,3317.9,3316.7,0.1508]
[1768708332979,1.21119598,3317.8,3316.7,0.1508]
[1768708333180,1.06831466,3317.7,3316.7,0.1508]
[1768708334075,0.14288132,3317.8,3316.7,0.1508]
[1768708336283,1.07001258,3317.7,3316.7,0.1508]
[1768708336484,0.14288132,3317.8,3316.7,0.1508]
[1768708336782,1.07001258,3317.7,3316.7,0.1508]
[1768708336982,0.14288132,3317.8,3316.7,0.1508]
[1768708337182,1.07001258,3317.7,3316.7,0.1508]
[1768708337375,0.14288132,3317.8,3316.7,0.1508]
[1768708337575,1.07002685,3317.7,3316.7,0.1508]
[1768708337777,0.14288132,3317.8,3316.7,0.1508]
[1768708337975,1.07002707,3317.7,3316.7,0.1508]
[1768708338177,0.14288132,3317.8,3316.7,0.1508]
[1768708338377,1.07004724,3317.7,3316.7,0.1508]
[1768708338579,0.14288132,3317.8,3316.7,0.1508]
[1768708338779,1.07004724,3317.7,3316.7,0.1508]
[1768708339076,0.14288132,3317.8,3316.7,0.1508]
[1768708339277,1.07004718,3317.7,3316.7,0.1508]
[1768708339477,0.14288132,3317.8,3316.7,0.1508]
[1768708339681,1.07004721,3317.7,3316.7,0.1508]
[1768708339873,0.14288132,3317.8,3316.7,0.1508]
[1768708340085,1.07004727,3317.7,3316.7,0.1508]
[1768708340276,0.14288132,3317.8,3316.7,0.1508]
[1768708340676,1.0700469,3317.7,3316.7,0.1508]
[1768708340877,0.14288132,3317.8,3316.7,0.1508]
[1768708341079,1.0700469,3317.7,3316.7,0.1508]
[1768708341279,0.14288132,3317.8,3316.7,0.1508]
[1768708341479,1.07004819,3317.7,3316.7,0.1508]
[1768708341783,0.14288132,3317.8,3316.7,0.1508]
[1768708341984,1.07004815,3317.7,3316.7,0.1508]
[1768708342178,0.14288132,3317.8,3316.7,0.1508]
[1768708342379,1.07004965,3317.7,3316.7,0.1508]
[1768708342579,0.14288132,3317.8,3316.7,0.1508]
[1768708342784,0.14288132,3317.8,3316.8,0.15079]
[1768708342981,1.07004951,3317.7,3316.8,0.15079]
[1768708343187,0.14288132,3317.8,3316.8,0.15079]
[1768708344793,1.07004719,3317.7,3316.8,0.15079]
[1768708344994,0.14288132,3317.8,3316.8,0.15079]
[1768708345184,1.07004724,3317.7,3316.8,0.15079]
[1768708345479,0.14288132,3317.8,3316.8,0.15079]
[1768708345678,1.07004904,3317.7,3316.8,0.15079]
[1768708345880,0.14288132,3317.8,3316.8,0.15079]
[1768708346081,1.07004885,3317.7,3316.8,0.15079]
[1768708346278,0.14288132,3317.8,3316.8,0.15079]
[1768708346496,1.07004919,3317.7,3316.8,0.15079]
[1768708346793,0.14288132,3317.8,3316.8,0.15079]
[1768708346982,1.07004924,3317.7,3316.8,0.15079]
[1768708347184,0.14288132,3317.8,3316.8,0.15079]
[1768708347383,1.07005036,3317.7,3316.8,0.15079]
[1768708347584,1.11311807,3317.8,3316.8,0.15079]
[1768708347787,1.07005032,3317.7,3316.8,0.15079]
[1768708347987,1.11311807,3317.8,3316.8,0.15079]
[1768708348188,1.07005032,3317.7,3316.8,0.15079]
[1768708348383,1.11311807,3317.8,3316.8,0.15079]
[1768708348584,1.07005166,3317.7,3316.8,0.15079]
[1768708348785,0.14288132,3317.8,3316.8,0.15079]
[1768708348987,1.07005166,3317.7,3316.8,0.15079]
[1768708349285,1.11311807,3317.8,3316.8,0.15079]
[1768708349486,1.07005325,3317.7,3316.8,0.15079]
[1768708349685,1.11311807,3317.8,3316.8,0.15079]
[1768708349886,1.07005325,3317.7,3316.8,0.15079]
[1768708350087,1.11311807,3317.8,3316.8,0.15079]
[1768708350386,1.07005325,3317.7,3316.8,0.15079]
[1768708350587,1.11311807,3317.8,3316.8,0.15079]
[1768708350887,1.07005388,3317.7,3316.8,0.15079]
[1768708351087,1.11311807,3317.8,3316.8,0.15079]
[1768708351287,1.07005343,3317.7,3316.8,0.15079]
[1768708351589,1.11311807,3317.8,3316.8,0.15079]
[1768708351787,1.07005461,3317.7,3316.8,0.15079]
[1768708351988,1.11311807,3317.8,3316.8,0.15079]
[1768708352190,1.07005461,3317.7,3316.8,0.15079]
[1768708352390,1.11311807,3317.8,3316.8,0.15079]
[1768708352698,1.0700552,3317.7,3316.8,0.15079]
[1768708353000,1.11311807,3317.8,3316.8,0.15079]
[1768708353198,1.07005496,3317.7,3316.8,0.15079]
[1768708353501,1.11311807,3317.8,3316.8,0.15079]
[1768708353696,1.07005508,3317.7,3316.8,0.15079]
[1768708353897,1.11311807,3317.8,3316.8,0.15079]
[1768708354099,1.07005508,3317.7,3316.8,0.15079]
[1768708354294,1.11311807,3317.8,3316.8,0.15079]
[1768708354494,1.07006267,3317.7,3316.8,0.15079]
[1768708354694,1.11311807,3317.8,3316.8,0.15079]
[1768708354895,1.07006267,3317.7,3316.8,0.15079]
[1768708355096,1.11311807,3317.8,3316.8,0.15079]
[1768708355301,1.07006487,3317.7,3316.8,0.15079]
[1768708355493,1.11311807,3317.8,3316.8,0.15079]
[1768708355694,1.07006487,3317.7,3316.8,0.15079]
[1768708355993,1.11311807,3317.8,3316.8,0.15079]
[1768708356194,1.07006483,3317.7,3316.8,0.15079]
[1768708356394,1.11311807,3317.8,3316.8,0.15079]
[1768708356690,1.07006504,3317.7,3316.8,0.15079]
[1768708356894,1.11311807,3317.8,3316.8,0.15079]
[1768708357094,1.07006504,3317.7,3316.8,0.15079]
[1768708357294,1.11311807,3317.8,3316.8,0.15079]
[1768708357501,1.07006528,3317.7,3316.8,0.15079]
[1768708357701,1.11311807,3317.8,3316.8,0.15079]
[1768708357904,1.07006528,3317.7,3316.8,0.15079]
[1768708358094,1.11311807,3317.8,3316.8,0.15079]
[1768708358393,1.07006533,3317.7,3316.8,0.15079]
[1768708358593,1.11311807,3317.8,3316.8,0.15079]
[1768708358794,1.07006493,3317.7,3316.8,0.15079]
[1768708359090,1.11311807,3317.8,3316.8,0.15079]
[1768708359295,1.07006488,3317.7,3316.8,0.15079]
[1768708359592,1.11311807,3317.8,3316.8,0.15079]
[1768708359787,1.07006494,3317.7,3316.8,0.15079]
[1768708359993,1.11311807,3317.8,3316.8,0.15079]
[1768708360193,1.07006494,3317.7,3316.8,0.15079]
[1768708360391,1.11311807,3317.8,3316.8,0.15079]
[1768708360599,1.07006508,3317.7,3316.8,0.15079]
[1768708360800,1.11311807,3317.8,3316.8,0.15079]
[1768708361000,1.07006507,3317.7,3316.8,0.15079]
[1768708361199,1.11311807,3317.8,3316.8,0.15079]
[1768708361507,1.07006533,3317.7,3316.8,0.15079]
[1768708361701,1.11311807,3317.8,3316.8,0.15079]
[1768708361903,1.07006533,3317.7,3316.8,0.15079]
[1768708362202,1.11311807,3317.8,3316.8,0.15079]
[1768708362403,1.07006556,3317.7,3316.8,0.15079]
[1768708362702,1.11311807,3317.8,3316.8,0.15079]
[1768708362903,1.07006572,3317.7,3316.8,0.15079]
[1768708363102,1.11311807,3317.8,3316.8,0.15079]
[1768708363303,1.07192006,3317.7,3316.8,0.15079]
[1768708363505,1.11311807,3317.8,3316.8,0.15079]
[1768708363696,1.07191987,3317.7,3316.8,0.15079]
[1768708363910,1.11311807,3317.8,3316.8,0.15079]
[1768708364200,1.07191987,3317.7,3316.8,0.15079]
[1768708364400,1.11311807,3317.8,3316.8,0.15079]
[1768708364599,1.0719213,3317.7,3316.8,0.15079]
[1768708364802,1.11311807,3317.8,3316.8,0.15079]
[1768708365108,1.07192136,3317.7,3316.8,0.15079]
[1768708365312,1.11311807,3317.8,3316.8,0.15079]
[1768708365497,1.07192219,3317.7,3316.8,0.15079]
[1768708365693,1.11311807,3317.8,3316.8,0.15079]
[1768708365897,1.07192219,3317.7,3316.8,0.15079]
[1768708366093,1.11311807,3317.8,3316.8,0.15079]
[1768708366298,1.07192238,3317.7,3316.8,0.15079]
[1768708366508,1.11311807,3317.8,3316.8,0.15079]
[1768708366705,1.07192303,3317.7,3316.8,0.15079]
[1768708366909,1.11311807,3317.8,3316.8,0.15079]
[1768708367110,1.07192302,3317.7,3316.8,0.15079]
[1768708367300,1.11311807,3317.8,3316.8,0.15079]
[1768708367499,1.07192385,3317.7,3316.8,0.15079]
[1768708367799,1.11311807,3317.8,3316.8,0.15079]
[1768708367996,1.07192367,3317.7,3316.8,0.15079]
[1768708368194,1.11311807,3317.8,3316.8,0.15079]
[1768708368399,1.07192513,3317.7,3316.8,0.15079]
[1768708368693,1.11311807,3317.8,3316.8,0.15079]
[1768708368993,1.07192512,3317.7,3316.8,0.15079]
[1768708369197,0.13917565,3317.7,3316.8,0.15079]
[1768708376604,0.00316237,3317.9,3316.8,0.15079]
[1768708376605,0.97339912,3317.9,3316.8,0.15079]
[1768708376802,1.07178477,3317.8,3316.8,0.15079]
[1768708377016,1.07178477,3317.7,3316.8,0.15079]
[1768708377210,0.97339912,3317.9,3316.8,0.15079]
[1768708377424,1.07177377,3317.8,3316.8,0.15079]
[1768708377713,1.07177377,3317.7,3316.8,0.15079]
[1768708377916,0.97339912,3317.9,3316.8,0.15079]
[1768708378105,1.07177478,3317.8,3316.8,0.15079]
[1768708378308,1.07177478,3317.7,3316.8,0.15079]
[1768708378504,0.97339912,3317.9,3316.8,0.15079]
[1768708378703,1.07177148,3317.8,3316.8,0.15079]
[1768708379008,1.07177148,3317.7,3316.8,0.15079]
[1768708379204,0.97339912,3317.9,3316.8,0.15079]
[1768708379407,1.07176822,3317.8,3316.8,0.15079]
[1768708379705,1.07176822,3317.7,3316.8,0.15079]
[1768708379901,0.97339912,3317.9,3316.8,0.15079]
[1768708380105,1.07176822,3317.8,3316.8,0.15079]
[1768708380306,1.07176822,3317.7,3316.8,0.15079]
[1768708380519,0.97339912,3317.9,3316.8,0.15079]
[1768708380814,1.07176585,3317.8,3316.8,0.15079]
[1768708381116,0.00316237,3317.9,3317.0,0.97023675]
[1768708397939,0.00316237,3317.9,3316.9,0.15079]
[1768708407352,1.07071934,3317.8,3316.9,0.15079]
[1768708407554,0.00316237,3317.9,3316.9,0.15079]
[1768708413159,1.07101628,3317.8,3316.9,0.15079]
[1768708413360,0.13512979,3317.9,3316.9,0.15079]
[1768708413656,1.07095665,3317.8,3316.9,0.15079]
[1768708413863,0.13512979,3317.9,3316.9,0.15079]
[1768708414062,1.07095584,3317.8,3316.9,0.15079]
[1768708414263,0.13512979,3317.9,3316.9,0.15079]
[1768708414461,1.07091497,3317.8,3316.9,0.15079]
[1768708414662,0.13512979,3317.9,3316.9,0.15079]
[1768708414864,1.07091547,3317.8,3316.9,0.15079]
[1768708415162,0.13512979,3317.9,3316.9,0.15079]
[1768708415362,1.07091504,3317.8,3316.9,0.15079]
[1768708415554,0.13512979,3317.9,3316.9,0.15079]
[1768708415753,1.07087929,3317.8,3316.9,0.15079]
[1768708415954,0.13512979,3317.9,3316.9,0.15079]
[1768708416158,1.0708789,3317.8,3316.9,0.15079]
[1768708416359,0.13512979,3317.9,3316.9,0.15079]
[1768708416562,1.07086272,3317.8,3316.9,0.15079]
[1768708416861,0.13512979,3317.9,3316.9,0.15079]
[1768708417063,1.07086278,3317.8,3316.9,0.15079]
[1768708417263,0.13512979,3317.9,3316.9,0.15079]
[1768708417465,1.07084903,3317.8,3316.9,0.15079]
[1768708417761,0.13512979,3317.9,3316.9,0.15079]
[1768708417961,1.07084907,3317.8,3316.9,0.15079]
[1768708418163,0.13512979,3317.9,3316.9,0.15079]
[1768708418365,1.07084908,3317.8,3316.9,0.15079]
[1768708418555,0.13512979,3317.9,3316.9,0.15079]
[1768708418760,1.07083685,3317.8,3316.9,0.15079]
[1768708418961,0.13512979,3317.9,3316.9,0.15079]
[1768708419166,1.07083685,3317.8,3316.9,0.15079]
[1768708419365,0.13512979,3317.9,3316.9,0.15079]
[1768708419566,1.07082675,3317.8,3316.9,0.15079]
[1768708419768,0.13512979,3317.9,3316.9,0.15079]
[1768708420062,1.07082675,3317.8,3316.9,0.15079]
[1768708420259,0.00316237,3317.9,3316.9,0.15079]
[1768708420459,1.07081886,3317.8,3316.9,0.15079]
[1768708420669,0.00316237,3317.9,3316.9,0.15079]
[1768708420868,1.07081868,3317.8,3316.9,0.15079]
[1768708421069,0.00316237,3317.9,3316.9,0.15079]
[1768708421264,1.07081868,3317.8,3316.9,0.15079]
[1768708421567,0.00316237,3317.9,3316.9,0.15079]
[1768708421862,1.07081271,3317.8,3316.9,0.15079]
[1768708422061,0.00316237,3317.9,3316.9,0.15079]
[1768708422260,1.07081271,3317.8,3316.9,0.15079]
[1768708422461,0.00316237,3317.9,3316.9,0.15079]
[1768708422662,1.07080767,3317.8,3316.9,0.15079]
[1768708422864,0.00316237,3317.9,3316.9,0.15079]
[1768708423066,1.07080763,3317.8,3316.9,0.15079]
[1768708423266,0.00316237,3317.9,3316.9,0.15079]
[1768708423462,1.06996406,3317.8,3316.9,0.15079]
[1768708423662,0.00316237,3317.9,3316.9,0.15079]
[1768708423873,1.06997056,3317.8,3316.9,0.15079]
[1768708424072,0.00316237,3317.9,3316.9,0.15079]
[1768708424272,1.06997056,3317.8,3316.9,0.15079]
[1768708424573,0.00316237,3317.9,3316.9,0.15079]
[1768708424771,1.06997104,3317.8,3316.9,0.15079]
[1768708424971,0.00316237,3317.9,3316.9,0.15079]
[1768708425174,1.06997099,3317.8,3316.9,0.15079]
[1768708425369,0.00316237,3317.9,3316.9,0.15079]
[1768708425571,1.06998206,3317.8,3316.9,0.15079]
[1768708425767,0.00316237,3317.9,3316.9,0.15079]
[1768708425968,1.06998206,3317.8,3316.9,0.15079]
[1768708426172,0.00316237,3317.9,3316.9,0.15079]
[1768708426371,1.06998205,3317.8,3316.9,0.15079]
[1768708426571,0.00316237,3317.9,3316.9,0.15079]
[1768708426772,1.06998762,3317.8,3316.9,0.15079]
[1768708427172,0.00316237,3317.9,3316.9,0.15079]
[1768708427472,1.06998967,3317.8,3316.9,0.15079]
[1768708427672,0.00316237,3317.9,3316.9,0.15079]
[1768708427875,1.06998967,3317.8,3316.9,0.15079]
[1768708428173,0.00316237,3317.9,3316.9,0.15079]
[1768708428474,1.06998972,3317.8,3316.9,0.15079]
[1768708428666,0.00316237,3317.9,3316.9,0.15079]
[1768708428867,1.06998945,3317.8,3316.9,0.15079]
[1768708429067,0.00316237,3317.9,3316.9,0.15079]
[1768708429267,1.06998945,3317.8,3316.9,0.15079]
[1768708429468,0.00316237,3317.9,3316.9,0.15079]
[1768708429667,1.06998923,3317.8,3316.9,0.15079]
[1768708429870,0.00316237,3317.9,3316.9,0.15079]
[1768708430169,1.06998919,3317.8,3316.9,0.15079]
[1768708430369,0.00316237,3317.9,3316.9,0.15079]
[1768708430569,1.06998489,3317.8,3316.9,0.15079]
[1768708430774,0.00316237,3317.9,3316.9,0.15079]
[1768708430972,1.06998484,3317.8,3316.9,0.15079]
[1768708431172,0.13642815,3317.9,3316.9,0.15079]
[1768708431376,1.06999193,3317.8,3316.9,0.15079]
[1768708431577,0.13642815,3317.9,3316.9,0.15079]
[1768708431879,1.06999355,3317.8,3316.9,0.15079]
[1768708432077,0.13642815,3317.9,3316.9,0.15079]
[1768708432281,1.06999304,3317.8,3316.9,0.15079]
[1768708432478,0.13642815,3317.9,3316.9,0.15079]
[1768708432775,1.06999548,3317.8,3316.9,0.15079]
[1768708432968,0.13642815,3317.9,3316.9,0.15079]
[1768708433168,1.06999598,3317.8,3316.9,0.15079]